Cogmind - Beta 12 @@@ ROGUE MODE // 2023.04.12 @ 08:11:53 Player: Hekatonkheires Result: Destroyed by as-36616 with Assembled Blade Performance ------------- Evolutions (0) 0 Regions Visited (2) 400 Robots Destroyed (18) 90 Value Destroyed (395) 395 Prototype IDs (2) 40 Alien Tech Used (0) 0 Bonus (0) 0 TOTAL SCORE: 925 Bonus ------- None Cogmind --------- Core Integrity 0/250 Matter 228/300 Energy 249/250 System Corruption 1% Temperature Cool (0) Movement Core (800) Ox15 Location -10/Mines Parts ------- > --- POWER (1) -------- Ion Engine > --- PROPULSION (2) --- (None) > --- UTILITY (2) ------ High-capacity Storage Unit Signal Interpreter > --- WEAPON (2) ------- Light Assault Rifle > --- INVENTORY (20) --- Ion Engine Ion Engine Light Nuclear Core Light Treads Light Treads Aluminum Leg Compact Wheel Heat Sink Improved Heat Sink Small Matter Pod (50) Medium Matter Pod (100) Medium Matter Pod (70) Medium Matter Pod (0) Weight Redist. System Sensor Array Light Armor Plating Heavy EM Pulse Gun Beam Rifle Datajack Peak State ------------ > --- POWER ------------ Ion Engine > --- PROPULSION ------- Light Treads Light Treads > --- UTILITY ---------- High-capacity Storage Unit Sensor Array > --- WEAPON ----------- Heavy EM Pulse Gun Heavy EM Pulse Gun > --- INVENTORY -------- Ion Engine Ion Engine Ion Engine Ion Engine Light Nuclear Core Aluminum Leg Compact Wheel Compact Wheel Heat Sink Improved Heat Sink Small Matter Pod Small Matter Pod Small Matter Pod Weight Redist. System Signal Interpreter Heavy EM Pulse Gun Assault Rifle Light Assault Rifle Grenade Launcher Datajack [Rating: 11] Favorites ----------- Power Ion Engine Engine Ion Engine Propulsion Light Treads Treads Light Treads Wheel Compact Wheel Utility High-capacity Storage Unit Device Sensor Array Storage High-capacity Storage Unit Processor Signal Interpreter Weapon Heavy EM Pulse Gun Energy Gun Heavy EM Pulse Gun Ballistic Gun Assault Rifle Launcher Grenade Launcher Build | -11 -10 -10 ------- Run | Jun Mat Min Slots Evolved . | . . . Power . | . . . Propulsion . | . . . Utility . | . . . Weapon . | . . . Parts Attached 25 | 4 13 8 Power 3 | 1 2 . Engine 3 | 1 2 . Core . | . . . Reactor . | . . . Propulsion 5 | 2 . 3 Treads 4 | 2 . 2 Leg . | . . . Wheel 1 | . . 1 Hover . | . . . Flight . | . . . Utility 4 | 1 3 . Device 1 | . 1 . Storage 2 | 1 1 . Processor 1 | . 1 . Hackware . | . . . Protection . | . . . Artifact . | . . . Weapon 13 | . 8 5 Energy Gun 7 | . 6 1 Energy Cannon . | . . . Ballistic Gun 5 | . 2 3 Ballistic Cannon . | . . . Launcher 1 | . . 1 Special Weapon . | . . . Impact Weapon . | . . . Slashing Weapon . | . . . Piercing Weapon . | . . . Special Melee Weapon . | . . . Unidentified Prototypes . | . . . Corrupted Parts 1 | . . 1 System Corruption 1 | . . 1 Parts Lost 9 | . 1 8 Power . | . . . Propulsion 4 | . . 4 Utility . | . . . Weapon 5 | . 1 4 Highest Loss Streak 4 | . 1 4 To Critical Strikes 1 | . 1 . Average Slot Usage (%) 98 | . 99 95 Engine 14 | . 14 14 Treads 27 | . 28 23 Device 10 | . 13 . Storage 14 | . 14 14 Processor 3 | . . 14 Energy Gun 21 | . 20 22 Ballistic Gun 6 | . 7 5 Naked Turns . | . . . Heaviest Build 52 | 10 52 51 Greatest Support 40 | 40 40 40 Greatest Overweight (x) 16 | . 1 16 Average Overweight (x) . | . . 1 Largest Inventory Capacity 20 | 8 20 20 Average Capacity 18 | 7 18 20 Most Carried 20 | 8 20 20 Average Carried 16 | 4 16 19 Final Capacity 20 | 8 20 20 Final Carried 20 | 8 20 19 Class Distribution -------------------- 100% | Mutant Dominant Class ---------------- Mutant | -10/Materials Mutant | -10/Mines Resources | -11 -10 -10 ----------- Run | Jun Mat Min Matter Collected 764 | 185 460 119 Remotely . | . . . Salvage Created 682 | . 550 132 Parts 46 | . 38 8 Haulers Intercepted 2 | . 2 . Recyclers Shooed 1 | . 1 . Parts Field Recycled . | . . . Retrieved Matter . | . . . Parts Self-Destructed . | . . . Prevented . | . . . Kills | -11 -10 -10 ------- Run | Jun Mat Min Combat Hostiles Destroyed 19 | . 8 11 Guns 9 | . 7 2 AOE 9 | . 1 8 Classes Destroyed 9 | . 7 2 Builder 1 | . 1 . Hauler 2 | . 2 . Recycler 1 | . 1 . Operator 1 | . 1 . Watcher 3 | . 3 . Swarmer 3 | . 3 . Grunt 5 | . 5 . Sentry 2 | . . 2 Assembled 9 | . . 9 Best Kill Streak 9 | . 3 9 Combat Bots Only 9 | . 3 9 Max Kills in Single Turn 6 | . 2 6 Gunslinging . | . . . Exploded 6 | . 1 6 Melee . | . . . Uniques/NPCs Destroyed . | . . . Combat | -11 -10 -10 -------- Run | Jun Mat Min Damage Taken 1357 | . 490 867 Core 282 | . 63 219 Absorbed by Shields . | . . . Core Remaining (%) 100 | 100 . . Volleys Fired 50 | . 38 12 Largest 2 | . 2 2 Hottest 90 | . 90 90 Shots Fired 92 | . 73 19 Gun 89 | . 73 16 Cannon . | . . . Launcher 3 | . . 3 Special . | . . . Kinetic 26 | . 21 5 Thermal 28 | . 28 . Explosive 3 | . . 3 Electromagnetic 35 | . 24 11 Robot Hit Streak 10 | . 10 8 Robot Miss Streak 3 | . 3 2 Penetration Max . | . . . Secondary Targets 2 | . 1 1 Max Gunslinging Chain 1 | . 1 1 Shots Hit Robots 57 | . 44 13 Core Hits 55 | . 23 32 Critical Kills . | . . . Critical Parts Destroyed . | . . . Critical Strikes 3 | . 3 . Burn 3 | . 3 . Melee Attacks . | . . . Impact . | . . . Slashing . | . . . Piercing . | . . . Sneak Attacks . | . . . Combat Hostiles . | . . . Follow-up Attacks . | . . . Damage Inflicted 1484 | . 694 790 Guns 799 | . 636 163 Cannons . | . . . Explosions 685 | . 58 627 Melee . | . . . Ramming . | . . . Kinetic 189 | . 146 43 Thermal 260 | . 260 . Explosive 627 | . . 627 Electromagnetic 408 | . 288 120 Impact . | . . . Slashing . | . . . Piercing . | . . . Highest Corruption 1 | . . 1 Average Corruption 1 | . . 1 Corruption Purged . | . . . Corruption Blocked . | . . . Effects 1 | . . 1 Matter Fused 1 | . . 1 Overload Shots . | . . . Overflow Damage 9 | . . 9 Projectiles . | . . . Explosions 9 | . . 9 Melee . | . . . Knockbacks . | . . . Impact . | . . . Kinetic . | . . . Secondary . | . . . Self-Inflicted Damage 47 | . 19 28 Shots 3 | . 1 2 Rammed . | . . . Targets Rammed . | . . . Kicked . | . . . Crushed . | . . . Highest Temperature 315 | . 315 207 Average Temperature 108 | . 107 113 Received Heat Transfer 376 | . 201 175 Effects 1 | . 1 . Interference 1 | . 1 . Siege Activations . | . . . Robots Corrupted 1 | . . 1 Combat Hostiles 1 | . . 1 Parts Fried 1 | . 1 . Impact Corruptions . | . . . Robots Melted . | . . . Combat Hostiles . | . . . Parts Melted 2 | . 2 . Heat Transferred 914 | . 914 . Parts Sabotaged . | . . . Parts Stolen . | . . . Parts Stripped . | . . . Power Chain Reactions 2 | . 2 . Missiles Intercepted . | . . . Alert | -11 -10 -10 ------- Run | Jun Mat Min Peak Influence 149 | . 149 40 Initial . | . . . Average 34 | . 42 11 Maximum Alert Level . | . . . Low Security (%) 100 | 100 100 100 Level 1 . | . . . Level 2 . | . . . Level 3 . | . . . Level 4 . | . . . Level 5 . | . . . High Security . | . . . Max Security . | . . . Squads Dispatched 1 | . 1 . Investigation . | . . . Extermination . | . . . Reinforcement 1 | . 1 . Assault . | . . . Garrison . | . . . Intercept . | . . . Searches Triggered . | . . . Construction Impeded . | . . . Haulers Reinforced . | . . . Active Scanning Responses . | . . . Cargo Convoy Interrupts . | . . . Stealth | -11 -10 -10 --------- Run | Jun Mat Min Distress Signals 1 | . 1 . Communications Jammed . | . . . Distress Signals . | . . . Times Spotted 37 | . 16 21 Peak Tracking Total 14 | . 3 14 Tactical Retreats 1 | . 1 . Traps | -11 -10 -10 ------- Run | Jun Mat Min Traps Triggered . | . . . Indirectly . | . . . Trap Hack Attempts . | . . . Triggered . | . . . Disarmed . | . . . Reprogrammed . | . . . Reused . | . . . Traps Extracted . | . . . Installed . | . . . Triggered . | . . . Machines | -11 -10 -10 ---------- Run | Jun Mat Min Machines Disabled . | . . . Max in Single Turn . | . . . Machines Repaired . | . . . Machines Sabotaged . | . . . Overloaded Fab Kills . | . . . Hacking | -11 -10 -10 --------- Run | Jun Mat Min Machines Accessed 7 | . 7 . Terminals 7 | . 7 . Fabricators . | . . . Repair Stations . | . . . Recycling Units . | . . . Scanalyzers . | . . . Garrison Access . | . . . Total Hacks 25 | . 25 . Successful 17 | . 17 . Failed 7 | . 7 . Catastrophic 1 | . 1 . Database Lockouts 1 | . 1 . Manual 19 | . 19 . Terminals 25 | . 25 . Fabricators . | . . . Repair Stations . | . . . Recycling Units . | . . . Scanalyzers . | . . . Garrison Access . | . . . Terminal Hacks 13 | . 13 . Robot Analysis 8 | . 8 . Prototype ID Bank 1 | . 1 . Alert Level 1 | . 1 . Unreport Threat 1 | . 1 . Locate Traps 2 | . 2 . Fabricator Hacks . | . . . Repair Station Hacks . | . . . Recycling Unit Hacks . | . . . Scanalyzer . | . . . Garrison Access Hacks . | . . . Unauthorized Hacks 4 | . 4 . Terminals 4 | . 4 . Assimilate 1 | . 1 . Botnet 2 | . 2 . Operators 1 | . 1 . Fabricators . | . . . Repair Stations . | . . . Recycling Units . | . . . Scanalyzers . | . . . Garrison Access . | . . . Data Cores Recovered 1 | . 1 . Used . | . . . Hacking Detections 6 | . 6 . Full Trace Events . | . . . Feedback Events . | . . . Feedback Blocked . | . . . Robot Schematics Acquired . | . . . Robots Built . | . . . Authchips . | . . . Time . | . . . Total Robot Build Rating . | . . . Part Schematics Acquired . | . . . Parts Built . | . . . Authchips . | . . . Time . | . . . Total Part Build Rating . | . . . Parts Repaired . | . . . Time . | . . . Parts Recycled . | . . . Recycled Matter . | . . . Retrieved Matter . | . . . Retrieved Components . | . . . Parts Scanalyzed . | . . . Part Schematics Acquired . | . . . Parts Damaged . | . . . Bothacking | -11 -10 -10 ------------ Run | Jun Mat Min Used RIF Installer . | . . . Robots Hacked . | . . . Non-combat . | . . . Combat . | . . . Robot Hacks Applied . | . . . Relay Couplers Released . | . . . Fabnet Peak Effective % . | . . . Robots Rewired . | . . . Allies Hacked . | . . . Hacks Repelled . | . . . Allies | -11 -10 -10 -------- Run | Jun Mat Min Total Allies . | . . . Largest Group . | . . . Highest-Rated Group . | . . . Highest-Rated Ally . | . . . Total Orders . | . . . Ally Attacks . | . . . Total Damage . | . . . Kills . | . . . Allies Corrupted . | . . . Allies Melted . | . . . Intel | -11 -10 -10 ------- Run | Jun Mat Min Robot Analysis Total 8 | . 8 . Derelict Logs Recovered . | . . . Drone Launches . | . . . Drone Recoveries . | . . . Exploration | -11 -10 -10 ------------- Run | Jun Mat Min Turns Passed 2232 | 87 1701 444 Spaces Moved 818 | 48 617 153 Core 7 | 2 . 5 Treads 808 | 46 617 145 Legs . | . . . Wheels 3 | . . 3 Hover . | . . . Flight . | . . . Fastest Speed 50 | 50 160 145 Average Speed 231 | 155 230 259 Slowest Speed 850 | 160 240 850 Overloaded Moves . | . . . Propulsion Burnouts . | . . . Robots Hopped . | . . . Cave-ins Triggered . | . . . Exploration Rate (%) 47 | 5 94 43 Regions Visited 2 Branch Regions 1 Pre-discovered Areas . | . . . Known Exits Taken 1 | . 1 . Unknown Exits Taken 1 | 1 . . Scrap Searched . | . . . Spaces Dug . | . . . Terrain Destroyed 25 | . 4 21 Melee . | . . . Projectile . | . . . AOE 25 | . 4 21 Terrain Rammed . | . . . Walls Destroyed . | . . . Machines Disabled . | . . . Actions | -11 -10 -10 --------- Run | Jun Mat Min Total 1073 | 59 833 181 Wait 131 | . 128 3 Move 816 | 47 616 153 Hop . | . . . Pick Up 36 | 8 25 3 Fast Attach 7 | 4 1 2 Attach 6 | . 3 3 Detach . | . . . Swap 12 | . 9 3 Drop 15 | . 13 2 Fire 50 | . 38 12 Melee . | . . . Ram . | . . . Kick . | . . . Crush . | . . . Escape Stasis . | . . . Rewire . | . . . Trap . | . . . Miscellaneous . | . . . Route ------- -11/Junkyard -10/Materials (discovered 4 exits: [*Mat x2] / *Min x2) -10/Mines (discovered 1 exit: [*Mat]) History --------- Turn | Location | Event 9 | -11/Junkyard | Discovered new exit (range 16) 88 | -11/Junkyard | Entered Materials 302 | -10/Materials | Build established: Mutant 647 | -10/Materials | Central database locked down 755 | -10/Materials | Discovered new exit (range 11) 1047 | -10/Materials | Discovered new exit (range 16) 1444 | -10/Materials | Discovered new exit (range 16) 1636 | -10/Materials | Discovered new exit (range 16) 1757 | -10/Materials | Identified exit to Mines 1789 | -10/Materials | Entered Mines 1828 | -10/Mines | Discovered new exit (range 9) 2065 | -10/Mines | Core integrity fell below 50% 2095 | -10/Mines | Lost 4 parts (2n2w) 2209 | -10/Mines | Assembled infested the area 2214 | -10/Mines | Assisted by a Guerilla fighting off Assembled 2229 | -10/Mines | Core integrity fell below 20% 2233 | -10/Mines | Destroyed by as-36616 with Assembled Blade Last Messages --------------- 02218_ HV Slug penetrates as-94580. 02218_ as-94580 destroyed. 02218_ HV Slug penetrates Wall. 02220_ 9N-CWO(h) suffers critical hit (Destroy). 02220_ 9N-CWO(h) destroyed. 02223_ Com. Wheel destroyed. 02225_ Destroyed Asb. Hover Unit. 02225_ as-89633 destroyed. 02225_ as-35059 destroyed. 02227_ as-33960 destroyed. 02227_ as-30637 destroyed. 02227_ as-56801 destroyed. 02227_ as-18983 destroyed. 02227_ as-46120 destroyed. 02227_ as-47056 destroyed. 02228_ Grenade Launcher destroyed. 02230_ as-58454 destroyed. 02230_ Switching to secondary target: as-69799. 02230_ Assault Rifle destroyed. 02232_ Lgt. Treads destroyed. Map ----- +----------------------------------------------------+ | | | | | ???????????????????????????????????????????? | | ???????????????????????????????????????????? | | ???????????????????????????????????????????? | | ???????????????????????????????????????????? | | ???????????????????????????????????????????? | | ???????????????????????????????????????????? | | ???????????????????????????????????????????? | | ???????????????????????????????????????????? | | ???????????????????????????????????????????? | | ???????????????????????????????????????????? | | ???????????????????????????????????????????? | | ???????????????????????????????????????????? | | ???????????????????????????????????? #?????? | | ????????????????????????????????### #?????? | | ???????????????????????????????#;;# #?????? | | ??????????????????????????????# #?????? | | ????????????????????????????## ##????? | | ???????????????????????????? aa #????? | | ????????????#??????????????? a #????? | | ???????????## ????????# #?????? | | ???????????# ???????? % #???????? | | ?????????? ####? aa #?????????? | | ?????????? # a #?????????? | | ????????????# @a #?????????? | | ??????????????# a a ##?????????? | | ??????????????# ## *% #??????????? | | ??????????????# ??## = #??????????? | | ???????????? ?????# ###??????????? | | ???????????? ????????# #????????????? | | ???????????? ?????????# #????????????? | | ???????????? ?????????# #????????????? | | ????????????? ## #??####???# #####????????? | | ???????????????# #?## ##??# # ##???????? | | ?????????????### ### #### #???????? | | ?????????????# ##??????? | | ?????????????# ###### ##?????? | | ?????????????# #????### ### ##????? | | ????########## #??????## ##?## ##???? | | ????# #???????# ##???# ##??? | | #???# ##########???????# #???## ##?? | | # ??# #????????????????## ##???# #?? | | ## ######????????????####?#### ! #?? | | #????????????????##]/##* #?? | | #????????????????#"[[ # * #?? | | ######## ##########???????# + ! #?? | | ????????# #???????# + ##?? | | ?????????# ######## #???????#"!! # #??? | | ?????????# #??????# #???????##![## #?? | +----------------------------------------------------+ Best States ------------- Heat Dissipation 25 Energy Generation 10 Energy Capacity 250 Matter Stores 300 Matter Capacity 300 Sight Range 16 Robot Scan Range 14 Terrain Scan Density 10 Evasion (%) 40 Recoil Reduction 2 Item Schematics ----------------- None Robot Schematics ------------------ None Fabricated ------------ Nothing Alien Tech Used ----------------- None Achievements -------------- None Challenges ------------ None Game ------ Seed SigixNavigationSlayer Manual? 0 Play Time 00:20:49 Cumulative 38.9 hours Start 2023.04.12 @ 07:50:41 End 2023.04.12 @ 08:11:53 Sessions 1 Manual Loads 0 Difficulty Rogue Special Mode None Game No. 31 Rogue 31 Adventurer 0 Explorer 0 Win Type - Total 1 Types 1/0/0/0/0/0/0/0/0 Lore% 46 Gallery% 38 Achievement% 37 Wizard Run 0 Options --------- ASCII 0 Keyboard 0 Movement Numpad Keybinds 0 Fullscreen 1 Font 14/SmallcapsGlow Map View 84x54 Tactical HUD 1 Map Filters NONE Filters NONE Steam 1 RUN: e32c1fe4-1e65-4439-8c3b-0b19bccc50f6